Cogmind - Beta 13 @@@ ROGUE MODE // 2024.04.23 @ 17:15:01 Player: pJotoro Result: Destroyed by C-40 Crusher with Compactor Performance ------------- Evolutions (3) 1500 Regions Visited (5) 1000 Robots Destroyed (58) 290 Value Destroyed (1713) 1713 Prototype IDs (0) 0 Alien Tech Used (0) 0 Bonus (169) 169 TOTAL SCORE: 4672 Bonus ------- High Alert Combat Kills 169 Cogmind --------- Core Integrity 0/700 Matter 194/300 Energy 100/100 System Corruption 15% Temperature Cool (0) Movement Core (50) Location -7/Waste Parts ------- > --- POWER (2) -------- (None) > --- PROPULSION (6) --- (None) > --- UTILITY (2) ------ (None) > --- WEAPON (3) ------- (None) > --- INVENTORY (5) ---- (None) Peak State ------------ > --- POWER ------------ Light Ion Engine > --- PROPULSION ------- Armored Treads Armored Treads Armored Treads Armored Treads Armored Treads Armored Treads > --- UTILITY ---------- Compact Battery Advanced Visual Processing Unit > --- WEAPON ----------- High-powered Shock Rifle Tesla Rifle Gauss Rifle > --- INVENTORY -------- Medium Treads Light EM Pulse Cannon Plasma Cannon [Rating: 41] Favorites ----------- Power Light Ion Engine Engine Light Ion Engine Propulsion Armored Treads Treads Armored Treads Leg Aluminum Leg Hover Unit Improved Hover Unit Flight Unit Flight Unit Utility Advanced Visual Processing Unit Device Sensor Array Storage Compact Battery Processor Advanced Visual Processing Unit Protection Propulsion Shielding Weapon Plasma Cannon Energy Gun Small Laser Energy Cannon Plasma Cannon Ballistic Gun Assault Rifle Launcher Heavy Rocket Launcher Special Melee Weapon Datajack Build | -11 -10 -9 -8 -7 -7 ------- Run | Yrd Mat Mat Mat Fac Was Slots Evolved 6 | . . 2 2 2 . Power 1 | . . . 1 . . Propulsion 4 | . . 2 . 2 . Utility . | . . . . . . Weapon 1 | . . . 1 . . Parts Attached 95 | 6 10 37 16 22 4 Power 15 | 1 1 6 3 4 . Engine 15 | 1 1 6 3 4 . Core . | . . . . . . Reactor . | . . . . . . Propulsion 39 | 2 3 18 5 10 1 Treads 11 | . . . . 10 1 Leg 10 | 2 3 5 . . . Wheel . | . . . . . . Hover 4 | . . 4 . . . Flight 14 | . . 9 5 . . Utility 10 | 1 4 2 2 1 . Device 2 | . 1 1 . . . Storage 4 | 1 2 . . 1 . Processor 3 | . 1 1 1 . . Hackware . | . . . . . . Protection 1 | . . . 1 . . Artifact . | . . . . . . Weapon 31 | 2 2 11 6 7 3 Energy Gun 9 | 1 2 3 1 2 . Energy Cannon 8 | . . . 2 3 3 Ballistic Gun 10 | 1 . 5 3 1 . Ballistic Cannon . | . . . . . . Launcher 3 | . . 2 . 1 . Special Weapon . | . . . . . . Impact Weapon . | . . . . . . Slashing Weapon . | . . . . . . Piercing Weapon . | . . . . . . Special Melee Weapon 1 | . . 1 . . . Unidentified Prototypes . | . . . . . . Parts Lost 28 | . . 10 2 7 9 Power 6 | . . 3 . 2 1 Propulsion 10 | . . 4 2 . 4 Utility 3 | . . 1 . 1 1 Weapon 9 | . . 2 . 4 3 Highest Loss Streak 9 | . . 7 2 3 9 To Critical Strikes 1 | . . 1 . . . Average Slot Usage (%) 88 | . 95 92 75 89 71 Engine 10 | . 14 9 18 8 5 Treads 17 | . . . . 44 35 Leg 14 | . 28 29 . . . Flight 6 | . . 8 33 . . Device 4 | . 5 11 . . . Storage 4 | . 15 . . 3 5 Processor 6 | . 2 10 1 7 5 Energy Gun 7 | . 14 7 4 5 11 Energy Cannon 3 | . . . 7 8 . Ballistic Gun 7 | . 14 8 9 3 5 Launcher 1 | . . 2 . 2 . Naked Turns 15 | . . . . . 15 Heaviest Build 37 | 11 16 17 16 37 18 Greatest Support 120 | 20 20 40 17 120 120 Greatest Overweight (x) 4 | 1 . 4 1 . 1 Average Overweight (x) . | . . . . . . Largest Inventory Capacity 8 | 8 8 5 5 5 5 Average Capacity 5 | 7 6 5 5 5 5 Most Carried 8 | 6 8 5 5 5 3 Average Carried 4 | 2 6 4 4 2 2 Final Capacity 8 | 8 5 5 5 5 5 Final Carried 6 | 6 5 4 5 3 . Class Distribution -------------------- 27% | Mutant 23% | Scavenger-Mutant 19% | Skirmisher 16% | Scavenger-Sprinter 12% | Tank Dominant Class ---------------- Mutant | -10/Materials Scavenger-Mutant | -9/Materials Scavenger-Sprinter | -8/Materials Skirmisher | -7/Factory Skirmisher | -7/Waste Resources | -11 -10 -9 -8 -7 -7 ----------- Run | Yrd Mat Mat Mat Fac Was Matter Collected 1701 | 260 325 710 166 240 . Remotely . | . . . . . . Salvage Created 1881 | . 403 972 183 323 . Parts 123 | . 17 66 20 20 . Haulers Intercepted 1 | . . 1 . . . Recyclers Shooed . | . . . . . . Parts Field Recycled . | . . . . . . Retrieved Matter . | . . . . . . Parts Self-Destructed . | . . . . . . Prevented . | . . . . . . Kills | -11 -10 -9 -8 -7 -7 ------- Run | Yrd Mat Mat Mat Fac Was Combat Hostiles Destroyed 42 | . 7 23 5 7 . Melee 1 | . . . . 1 . Guns 31 | . 7 20 2 2 . Cannons 7 | . . . 3 4 . AOE 3 | . . 3 . . . Classes Destroyed 12 | . 4 5 1 2 . Worker 3 | . 1 1 . 1 . Builder 2 | . . 2 . . . Hauler 1 | . . 1 . . . Recycler 1 | . 1 . . . . Watcher 9 | . 2 4 1 2 . Swarmer 9 | . . 6 3 . . Grunt 22 | . 7 11 . 4 . Brawler 1 | . . 1 . . . Duelist 1 | . . . . 1 . Sentry 7 | . . 5 1 1 . Hunter 1 | . . . 1 . . Programmer 1 | . . . . 1 . Best Kill Streak 7 | . 4 7 4 4 . Combat Bots Only 4 | . 3 4 3 3 . Max Kills in Single Turn 2 | . 1 2 2 2 . Gunslinging 1 | . . 1 . . . Exploded 1 | . . 1 . . . Melee 1 | . . . . 1 . Uniques/NPCs Destroyed . | . . . . . . Combat | -11 -10 -9 -8 -7 -7 -------- Run | Yrd Mat Mat Mat Fac Was Hostile Shots Fired 311 | . 41 157 34 62 17 Missed 98 | . 15 55 13 14 1 Damage Taken 4125 | . 295 1534 238 1219 839 Core 1146 | . 60 327 37 111 611 Absorbed by Shields . | . . . . . . Redirected to Shielding 51 | . . . . 51 . Core Remaining (%) 71 | 100 76 18 93 . . Volleys Fired 174 | . 35 91 21 21 6 Largest 3 | . 2 2 3 3 3 Hottest 199 | . 60 86 140 199 153 Shots Fired 305 | . 68 128 48 50 11 Gun 248 | . 68 118 30 22 10 Cannon 43 | . . . 18 24 1 Launcher 14 | . . 10 . 4 . Special . | . . . . . . Kinetic 145 | . 35 74 21 12 3 Thermal 105 | . 33 29 18 24 1 Explosive 14 | . . 10 . 4 . Electromagnetic 41 | . . 15 9 10 7 Robot Hit Streak 14 | . 9 14 4 6 7 Robot Miss Streak 6 | . 4 4 6 6 1 Penetration Max 1 | . . . . 1 1 Secondary Targets 7 | . 2 5 . . . Max Gunslinging Chain 1 | . 1 1 . . . Shots Hit Robots 181 | . 44 82 22 24 9 Core Hits 98 | . 20 49 11 18 . Critical Kills . | . . . . . . Critical Parts Destroyed . | . . . . . . Critical Strikes 1 | . . . . 1 . Corrupt 1 | . . . . 1 . Melee Attacks 1 | . . 1 . . . Impact . | . . . . . . Slashing . | . . . . . . Piercing . | . . . . . . Sneak Attacks . | . . . . . . Combat Hostiles . | . . . . . . Follow-up Attacks . | . . . . . . Damage Inflicted 3548 | . 548 1393 451 951 205 Guns 2136 | . 548 1033 177 296 82 Cannons 583 | . . . 274 284 25 Explosions 810 | . . 360 . 352 98 Melee . | . . . . . . Ramming 19 | . . . . 19 . Kinetic 1244 | . 329 616 104 123 72 Thermal 1309 | . 219 277 274 416 123 Explosive 580 | . . 360 . 220 . Electromagnetic 396 | . . 140 73 173 10 Impact . | . . . . . . Slashing . | . . . . . . Piercing . | . . . . . . Highest Corruption 15 | . . 5 . 3 15 Average Corruption 4 | . . 4 . 2 9 Corruption Purged . | . . . . . . Corruption Blocked . | . . . . . . Effects 20 | . . 10 . 5 5 Message Errors 5 | . . 2 . 1 2 Matter Fused 7 | . . 4 . 1 2 Heat Flow Errors 4 | . . 2 . 2 . Energy Discharges 2 | . . 2 . . . Parts Fused 1 | . . . . 1 . Weapon Failures 1 | . . . . . 1 Overload Shots . | . . . . . . Overflow Damage 60 | . . 10 . 50 . Projectiles . | . . . . . . Explosions 60 | . . 10 . 50 . Melee . | . . . . . . Knockbacks . | . . . . . . Impact . | . . . . . . Kinetic . | . . . . . . Secondary . | . . . . . . Self-Inflicted Damage 338 | . . 8 . 243 87 Shots 6 | . . 1 . 4 1 Rammed 10 | . . . . 10 . Targets Rammed 11 | . . . . 11 . Kicked . | . . . . . . Crushed 1 | . . . . 1 . Highest Temperature 438 | . 93 286 438 396 78 Average Temperature 114 | . 47 62 192 149 41 Received Heat Transfer 897 | . 183 489 18 207 . Effects 8 | . . 1 5 2 . Shutdowns 5 | . . . 3 2 . Interference 1 | . . 1 . . . Damage (major) 2 | . . . 2 . . Siege Activations . | . . . . . . Robots Corrupted 1 | . . . . 1 . Combat Hostiles . | . . . . . . Parts Fried 1 | . . . . 1 . Impact Corruptions . | . . . . . . Robots Melted . | . . . . . . Combat Hostiles . | . . . . . . Parts Melted 4 | . . . 3 1 . Heat Transferred 2522 | . 500 672 550 650 150 Parts Sabotaged . | . . . . . . Parts Stolen . | . . . . . . Parts Stripped . | . . . . . . Power Chain Reactions 2 | . . . . 1 1 Alert | -11 -10 -9 -8 -7 -7 ------- Run | Yrd Mat Mat Mat Fac Was Peak Influence 616 | . 245 616 430 437 113 Initial 260 | . . 103 260 195 113 Average 291 | . 134 395 369 314 96 Maximum Alert Level 2 | . 1 2 2 2 . Low Security (%) 28 | 100 68 21 . 4 100 Level 1 42 | . 31 20 41 78 . Level 2 29 | . . 57 58 17 . Level 3 . | . . . . . . Level 4 . | . . . . . . Level 5 . | . . . . . . High Security . | . . . . . . Max Security . | . . . . . . Squads Dispatched 5 | . 1 2 2 . . Investigation 1 | . 1 . . . . Extermination . | . . . . . . Reinforcement 4 | . . 2 2 . . Assault . | . . . . . . Garrison . | . . . . . . Intercept . | . . . . . . Searches Triggered . | . . . . . . Construction Impeded . | . . . . . . Haulers Reinforced . | . . . . . . Active Scanning Responses . | . . . . . . Cargo Convoy Interrupts . | . . . . . . Stealth | -11 -10 -9 -8 -7 -7 --------- Run | Yrd Mat Mat Mat Fac Was Distress Signals 7 | . 2 4 1 . . Communications Jammed . | . . . . . . Distress Signals . | . . . . . . Times Spotted 67 | . 13 34 7 8 5 Peak Tracking Total 6 | . 4 6 4 4 5 Tactical Retreats 1 | . . 1 . . . Traps | -11 -10 -9 -8 -7 -7 ------- Run | Yrd Mat Mat Mat Fac Was Traps Triggered 3 | . 1 . . 2 . Indirectly . | . . . . . . Trap Hack Attempts . | . . . . . . Triggered . | . . . . . . Disarmed . | . . . . . . Reprogrammed . | . . . . . . Reused . | . . . . . . Traps Extracted . | . . . . . . Installed . | . . . . . . Triggered . | . . . . . . Machines | -11 -10 -9 -8 -7 -7 ---------- Run | Yrd Mat Mat Mat Fac Was Machines Disabled 7 | . . 1 . 6 . Max in Single Turn 5 | . . 1 . 5 . Machines Repaired . | . . . . . . Machines Dismantled . | . . . . . . Machines Sabotaged . | . . . . . . Overloaded Fab Kills . | . . . . . . Hacking | -11 -10 -9 -8 -7 -7 --------- Run | Yrd Mat Mat Mat Fac Was Machines Accessed . | . . . . . . Terminals . | . . . . . . Fabricators . | . . . . . . Repair Stations . | . . . . . . Recycling Units . | . . . . . . Scanalyzers . | . . . . . . Garrison Access . | . . . . . . Total Hacks . | . . . . . . Successful . | . . . . . . Failed . | . . . . . . Catastrophic . | . . . . . . Database Lockouts . | . . . . . . Manual . | . . . . . . Terminals . | . . . . . . Fabricators . | . . . . . . Repair Stations . | . . . . . . Recycling Units . | . . . . . . Scanalyzers . | . . . . . . Garrison Access . | . . . . . . Terminal Hacks . | . . . . . . Fabricator Hacks . | . . . . . . Repair Station Hacks . | . . . . . . Recycling Unit Hacks . | . . . . . . Scanalyzer . | . . . . . . Garrison Access Hacks . | . . . . . . Unauthorized Hacks . | . . . . . . Terminals . | . . . . . . Fabricators . | . . . . . . Repair Stations . | . . . . . . Recycling Units . | . . . . . . Scanalyzers . | . . . . . . Garrison Access . | . . . . . . Data Cores Recovered . | . . . . . . Used . | . . . . . . Hacking Detections . | . . . . . . Full Trace Events . | . . . . . . Feedback Events . | . . . . . . Feedback Blocked . | . . . . . . Robot Schematics Acquired . | . . . . . . Robots Built . | . . . . . . Authchips . | . . . . . . Time . | . . . . . . Total Robot Build Rating . | . . . . . . Part Schematics Acquired . | . . . . . . Parts Built . | . . . . . . Authchips . | . . . . . . Time . | . . . . . . Total Part Build Rating . | . . . . . . Parts Repaired . | . . . . . . Time . | . . . . . . Parts Recycled . | . . . . . . Recycled Matter . | . . . . . . Retrieved Matter . | . . . . . . Retrieved Components . | . . . . . . Parts Scanalyzed . | . . . . . . Part Schematics Acquired . | . . . . . . Parts Damaged . | . . . . . . Bothacking | -11 -10 -9 -8 -7 -7 ------------ Run | Yrd Mat Mat Mat Fac Was Used RIF Installer . | . . . . . . Robots Hacked 1 | . . 1 . . . Non-combat . | . . . . . . Combat 1 | . . 1 . . . Robot Hacks Applied 1 | . . 1 . . . parse_system 1 | . . 1 . . . Relay Couplers Released 4 | . . . . 4 . Programmers 4 | . . . . 4 . Fabnet Peak Effective % . | . . . . . . Robots Rewired . | . . . . . . Allies Hacked . | . . . . . . Hacks Repelled . | . . . . . . Allies | -11 -10 -9 -8 -7 -7 -------- Run | Yrd Mat Mat Mat Fac Was Total Allies . | . . . . . . Largest Group . | . . . . . . Highest-Rated Group . | . . . . . . Highest-Rated Ally . | . . . . . . Total Orders . | . . . . . . Ally Attacks . | . . . . . . Total Damage . | . . . . . . Kills . | . . . . . . Allies Corrupted . | . . . . . . Allies Melted . | . . . . . . Intel | -11 -10 -9 -8 -7 -7 ------- Run | Yrd Mat Mat Mat Fac Was Robot Analysis Total . | . . . . . . Derelict Logs Recovered . | . . . . . . Drone Launches . | . . . . . . Drone Recoveries . | . . . . . . Exploration | -11 -10 -9 -8 -7 -7 ------------- Run | Yrd Mat Mat Mat Fac Was Turns Passed 2260 | 70 394 670 259 741 126 Spaces Moved 1458 | 47 220 401 377 356 57 Core 11 | 6 . . . . 5 Treads 389 | . . . . 337 52 Legs 485 | 41 220 224 . . . Wheels . | . . . . . . Hover 12 | . . 12 . . . Flight 561 | . . 165 377 19 . Fastest Speed 29 | 50 120 31 29 32 50 Average Speed 99 | 112 120 84 31 162 161 Slowest Speed 360 | 120 120 360 112 170 170 Overloaded Moves . | . . . . . . Propulsion Burnouts . | . . . . . . Robots Hopped . | . . . . . . Cave-ins Triggered 1 | . . 1 . . . Exploration Rate (%) 27 | 3 32 35 33 11 53 Regions Visited 5 Branch Regions . Pre-discovered Areas . | . . . . . . Known Exits Taken 1 | . 1 . . . . Unknown Exits Taken 3 | 1 . 1 1 . . Scrap Searched . | . . . . . . Spaces Dug . | . . . . . . Terrain Destroyed 148 | . . 72 6 70 . Melee . | . . . . . . Projectile 8 | . . . 6 2 . AOE 140 | . . 72 . 68 . Terrain Rammed . | . . . . . . Walls Destroyed . | . . . . . . Machines Disabled . | . . . . . . Actions | -11 -10 -9 -8 -7 -7 --------- Run | Yrd Mat Mat Mat Fac Was Total 1999 | 64 285 620 479 469 82 Wait 155 | . 4 49 46 42 14 Move 1454 | 46 219 400 376 356 57 Hop . | . . . . . . Pick Up 52 | 12 6 16 6 11 1 Fast Attach 29 | . 3 14 5 7 . Attach 40 | 6 . 13 5 12 4 Detach 2 | . . 1 1 . . Swap 26 | . 7 10 6 3 . Drop 55 | . 11 25 13 6 . Fire 174 | . 35 91 21 21 6 Melee 1 | . . 1 . . . Ram . | . . . . . . Kick . | . . . . . . Crush 11 | . . . . 11 . Escape Stasis . | . . . . . . Rewire . | . . . . . . Trap . | . . . . . . Miscellaneous . | . . . . . . Route ------- -11/Scrapyard -10/Materials -9/Materials -8/Materials -7/Factory -7/Waste History --------- Turn | Location | Event 18 | -11/Scrapyard | Discovered new exit (range 16) 71 | -11/Scrapyard | Entered Materials 312 | -10/Materials | Discovered new exit (range 11) 337 | -10/Materials | Build established: Mutant 464 | -10/Materials | Identified exit to Materials 465 | -10/Materials | Entered another Materials area 465 | -9/Materials | Evolved 2 slots: Propulsion x2 703 | -9/Materials | Build established: Scavenger-Mutant 726 | -9/Materials | Crushed by falling debris 998 | -9/Materials | Discovered new exit (range 8) 1007 | -9/Materials | Core integrity fell below 50% 1084 | -9/Materials | Core integrity fell below 20% 1117 | -9/Materials | Lost 7 parts (2p3n2w) 1135 | -9/Materials | Entered another Materials area 1135 | -8/Materials | Evolved 2 slots: Power x1, Weapon x1 1383 | -8/Materials | Discovered new exit (range 8) 1394 | -8/Materials | Entered Factory 1394 | -7/Factory | Evolved 2 slots: Propulsion x2 1718 | -7/Factory | Lost 3 parts (1p1u1w) 2135 | -7/Factory | Sucked down chute 2135 | -7/Factory | Entered Waste 2137 | -7/Waste | Spotted C-40 Crusher 2150 | -7/Waste | EMP discharged 2150 | -7/Waste | System corruption reached 10% 2151 | -7/Waste | Spotted C-40 Crusher 2153 | -7/Waste | Build established: Skirmisher 2185 | -7/Waste | Spotted C-40 Crusher 2188 | -7/Waste | Spotted C-40 Crusher 2231 | -7/Waste | Crushed by Compactor (1 part destroyed, 2 dropped) 2234 | -7/Waste | Crushed by Compactor (1 part destroyed, 1 dropped) 2237 | -7/Waste | Crushed by Compactor (1 part destroyed, 1 dropped) 2237 | -7/Waste | Spotted C-40 Crusher 2239 | -7/Waste | Crushed by Compactor (1 part destroyed, 2 dropped) 2240 | -7/Waste | Crushed by Compactor (1 part destroyed, 1 dropped) 2242 | -7/Waste | Crushed by Compactor (1 part destroyed) 2249 | -7/Waste | Crushed by Compactor (1 part destroyed) 2250 | -7/Waste | EMP discharged 2251 | -7/Waste | Core integrity fell below 50% 2257 | -7/Waste | Core integrity fell below 20% 2261 | -7/Waste | Destroyed by C-40 Crusher with Compactor Last Messages --------------- Hpw. Shock Rifle crushed. Gauss Rifle crushed. Arm. Treads crushed. Tesla Rifle crushed. Lgt. Ion Engine destroyed. Com. Battery destroyed. Arm. Treads crushed. Lgt. EM Pulse Cannon crushed. Arm. Treads crushed. ALERT: Foreign system detected. Charging EMP. Med. Treads crushed. Adv. Visual Processing Unit crushed. Plasma Cannon crushed. Acquired Lgt. EM Pulse Cannon. System corrupted: Matter fused (-6). Arm. Treads crushed. Tesla Rifle crushed. Gauss Rifle crushed. Lgt. EM Pulse Cannon crushed. System corrupted (+5). Map ----- +----------------------------------------------------+ | | | ?????????????????????????????????????????????????? | | ?????????????????????????????????????????????????? | | ?????????????????????????????????????????????????? | | ?????????????????????????????????????????????????? | | ?????????????????????????????????????????????????? | | ?????????????????????????????????????????????????? | | ?????????????????????????????????????????????????? | | ?????????????????????????????????????????????????? | | ?????????????????????????????????????????????????? | | ?????????????????????????????????????????????????? | | ?????????????????????????????????????????????????? | | ?????????????????????????????????????????????????? | | ?????????????????????????????????????????????????? | | ?????????????????????????????????????????????????? | | ?????????????????????????????????????????????????? | | ?????????????????????????????????????????????????? | | ?????????????????????????????????????????????????? | | ?????????????????????????????????????????????????? | | ?????????????????????????????????????????????????? | | ?????????????????????????????????????????????????? | | ?????????????????????????????????????????????????? | | ?????????????????????????????????????????????????? | | ?????????????????????????????????????????????????? | | ???????????????????##########????????????????????? | | ???????????????????# @ #????????????????????? | | ???????????????????# CC CC#????????????????????? | | ???????????????????# CC CC#????????????????????? | | ???????????????????# CC #????????????????????? | | ???????????????????# CC #????????????????????? | | ???????????????????# CC #????????????????????? | | ???????????????????# CC #????????????????????? | | ?????????#####?????# #????????????????????? | | ?????????# #????### CC###????????????????????? | | ?????????# #??????# CC#??????????????????????? | | ?????????# #??????# #??????????????????????? | | ?????????# #??????# #??????????????????????? | | ???????### #??????# #??????????????????????? | | ???????# #??????# #??????????????????????? | | ???????# #??????# #??????????????????????? | | ???????? #??????# #??????????????????????? | | ????????? #??????# #??????????????????????? | | ?????????# #??????# #??????????????????????? | | ?????????# #??????# #??????????????????????? | | ?????????# #??????# #??????????????????????? | | ?????????# #??????# #??????????????????????? | | ???????### ######## #??????????????????????? | | ???????# #??????????????????????? | | ???????# #??????????????????????? | | ???????# #??????????????????????? | +----------------------------------------------------+ Best States ------------- Heat Dissipation 34 Energy Generation 21 Energy Capacity 440 Matter Stores 450 Matter Capacity 500 Sight Range 20 Robot Scan Range 14 Terrain Scan Range 14 Terrain Scan Density 85 Propulsion Shielding 33 Evasion (%) 64 Recoil Reduction 6 Item Schematics ----------------- None Robot Schematics ------------------ None Fabricated ------------ Nothing Alien Tech Used ----------------- None Achievements -------------- None Challenges ------------ None Game ------ Seed MasterArmoredTreads Manual? 0 Play Time 00:47:05 Cumulative 8.5 hours Start 2024.04.23 @ 16:15:12 End 2024.04.23 @ 17:15:01 Sessions 2 Manual Loads 0 Difficulty Rogue Special Mode None Game No. 15 Rogue 15 Adventurer 0 Explorer 0 Win Type - Total 0 Types 0/0/0/0/0/0/0/0/0 Lore% 2 Gallery% 14 Achievement% 9 Wizard Run 0 Options --------- Layout 2 ASCII 0 Keyboard 0 Movement Mouse Keybinds 0 Fullscreen 1 Font 48/Smallcaps Map View 50x44 Zoom Use 0% Tactical HUD 0 Map Filters NONE Filters NONE Steam 1 RUN: 28cc2d5c-cf78-436f-96e5-38e62716b5f7